fUST/lending_fUST_20250605
["ID","MTS","AMOUNT","RATE_DAILY","PERIOD"]
[364329522,1749071444471,-745.04,0.00022522,2]
[364329524,1749071444481,-984.47,0.00022523,2]
[364329526,1749071444491,-442.11,0.00022523,2]
[364329528,1749071444501,-577.98,0.00022523,2]
[364329531,1749071444510,-764.66,0.00022523,2]
[364329533,1749071444520,-1093.47,0.00022523,2]
[364329535,1749071444530,-440.0,0.00022524,2]
[364329536,1749071444540,-353.057519,0.00022548,2]
[364329539,1749071444550,-158.575084,0.00022548,2]
[364329540,1749071444560,-191.50532634,0.00022585,2]
[364329543,1749071444570,-1000.0,0.00022668,2]
[364329544,1749071444580,-1000.0,0.00022668,4]
[364329546,1749071444590,-1000.0,0.00022668,6]
[364329549,1749071444600,-1000.0,0.00022668,8]
[364329550,1749071444609,-1000.0,0.00022668,10]
[364329553,1749071444619,-159.26557925,0.00022669,2]
[364329555,1749071444629,-500.0,0.00022677,2]
[364329557,1749071444639,-1000.0,0.00022677,2]
[364329559,1749071444648,-5000.0,0.0002268,2]
[364329561,1749071444658,-1000.0,0.00022683,2]
[364329563,1749071444667,-1025.52033247,0.00022683,2]
[364329565,1749071444677,-1000.0,0.00022683,2]
[364329567,1749071444686,-1000.0,0.00022683,2]
[364329568,1749071444696,-1200.0,0.00022683,2]
[364329570,1749071444705,-1000.0,0.00022683,2]
[364329572,1749071444715,-1000.0,0.00022724,2]
[364329574,1749071444725,-1000.0,0.00022724,2]
[364329576,1749071444734,-1000.0,0.00022724,2]
[364329578,1749071444743,-501.49859335,0.00022724,2]
[364329579,1749071444752,-1000.0,0.00022724,2]
[364329580,1749071444761,-621.72,0.00022795,2]
[364329581,1749071444772,-815.84,0.00022795,2]
[364329582,1749071444781,-1143.55,0.00022795,2]
[364329583,1749071444790,-440.0,0.00022795,2]
[364329584,1749071444799,-440.0,0.00022795,2]
[364329585,1749071444809,-539.67,0.00022795,2]
[364329587,1749071444818,-440.0,0.00022795,2]
[364329589,1749071444827,-440.0,0.00022796,2]
[364329591,1749071444838,-745.04,0.00022796,2]
[364329593,1749071444848,-984.47,0.00022797,2]
[364329595,1749071444858,-442.11,0.00022797,2]
[364329597,1749071444868,-577.98,0.00022797,2]
[364329599,1749071444878,-764.66,0.00022797,2]
[364329602,1749071444888,-1093.47,0.00022797,2]
[364329603,1749071444898,-440.0,0.00022798,2]
[364329606,1749071444911,-546.72605437,0.00022967,2]
[364329607,1749071444920,-1500.0,0.00022967,2]
[364329610,1749071444930,-151.0,0.00023,7]
[364329611,1749071444939,-151.0,0.00023,7]
[364329613,1749071444949,-253.337168,0.00023,7]
[364329615,1749071444958,-74477.0,0.00023,7]
[364329617,1749071444968,-151.0,0.00023,5]
[364329619,1749071444979,-226.185763,0.00023,7]
[364329621,1749071444988,-61458.65,0.00023,2]
[364329624,1749071444998,-1407.63,0.00023,7]
[364329625,1749071445007,-151.0,0.00023,7]
[364329627,1749071445016,-151.0,0.00023,7]
[364329629,1749071445026,-250.0,0.00023008,2]
[364329631,1749071445035,-500.0,0.00023013,2]
[364329634,1749071445045,-621.72,0.00023069,2]
[364329635,1749071445055,-815.84,0.00023069,2]
[364329638,1749071445065,-1143.55,0.00023069,2]
[364329639,1749071445074,-440.0,0.00023069,2]
[364329642,1749071445084,-440.0,0.00023069,2]
[364329644,1749071445093,-539.67,0.00023069,2]
[364329646,1749071445102,-440.0,0.00023069,2]
[364329648,1749071445112,-440.0,0.0002307,2]
[364329650,1749071445121,-745.04,0.0002307,2]
[364329652,1749071445132,-984.47,0.00023071,2]
[364329654,1749071445141,-442.11,0.00023071,2]
[364329656,1749071445150,-577.98,0.00023071,2]
[364329658,1749071445160,-764.66,0.00023071,2]
[364329660,1749071445170,-1093.47,0.00023071,2]
[364329662,1749071445179,-440.0,0.00023072,2]
[364329664,1749071445189,-155.0,0.000231,2]
[364329666,1749071445198,-5000.0,0.00023193,2]
[364329668,1749071445207,-151.0,0.000232,7]
[364329670,1749071445217,-623.70667292,0.00023224,2]
[364329672,1749071445227,-5000.0,0.00023228,2]
[364329674,1749071445238,-1500.0,0.00023231,2]
[364329676,1749071445247,-1500.0,0.00023231,2]
[364329678,1749071445257,-1500.0,0.00023231,2]
[364329680,1749071445266,-1800.0,0.00023231,2]
[364329682,1749071445275,-1500.0,0.00023231,2]
[364329684,1749071445284,-829.57155879,0.00023272,2]
[364329686,1749071445293,-840.67825308,0.00023272,2]
[364329688,1749071445302,-1500.0,0.00023272,2]
[364329690,1749071445311,-1500.0,0.00023272,2]
[364329692,1749071445320,-200.0,0.00023287,2]
[364329693,1749071445329,-200.0,0.00023287,2]
[364329694,1749071445338,-200.0,0.00023287,2]
[364329696,1749071445348,-200.0,0.00023287,2]
[364329698,1749071445357,-200.0,0.00023287,2]
[364329700,1749071445367,-200.0,0.00023287,2]
[364329702,1749071445376,-200.0,0.00023287,2]
[364329703,1749071445386,-200.0,0.00023287,2]
[364329704,1749071445397,-200.0,0.00023287,2]
[364329705,1749071445407,-200.0,0.00023287,2]
[364329706,1749071445416,-200.0,0.00023287,2]
[364329707,1749071445425,-200.0,0.00023287,2]
[364329708,1749071445434,-200.0,0.00023287,2]
[364329709,1749071445445,-200.0,0.00023287,2]
[364329710,1749071445455,-200.0,0.00023287,2]
[364329711,1749071445465,-200.0,0.00023287,2]
[364329712,1749071445561,-200.0,0.00023287,2]
[364329713,1749071445571,-200.0,0.00023287,2]
[364329714,1749071445581,-855.0,0.000233,7]
[364329715,1749071445591,-621.72,0.00023343,2]
[364329716,1749071445600,-815.84,0.00023343,2]
[364329717,1749071445609,-1143.55,0.00023343,2]
[364329718,1749071445619,-152.58903056,0.00023343,2]
[364329719,1749071445628,-440.0,0.00023343,2]
[364329720,1749071445638,-539.67,0.00023343,2]
[364329721,1749071445647,-440.0,0.00023343,2]
[364329722,1749071445656,-440.0,0.00023344,2]
[364329723,1749071445667,-745.04,0.00023344,2]
[364329724,1749071445678,-984.47,0.00023345,2]
[364329725,1749071445687,-442.11,0.00023345,2]
[364329726,1749071445696,-577.98,0.00023345,2]
[364329727,1749071445706,-764.66,0.00023345,2]
[364329729,1749071445716,-1093.47,0.00023345,2]
[364329730,1749071445726,-200.0,0.00023346,2]
[364329731,1749071445738,-440.0,0.00023346,2]
[364329732,1749071445747,-1200.0,0.00023356,2]
[364329733,1749071445757,-151.0,0.00023356,7]
[364329734,1749071445766,-2816.83204157,0.000235,2]
[364329735,1749071445776,-151.0,0.000235,5]
[364329736,1749071445785,-215.0738,0.00023501,2]
[364329737,1749071445795,-159.40047307,0.00023507,2]
[364329738,1749071445805,-151.000001,0.00023509,7]
[364329739,1749071445814,-151.0,0.00023509,7]
[364329740,1749071445823,-151.0,0.00023509,7]
[364329741,1749071445833,-2000.0,0.00023515,2]
[364329742,1749071445843,-468.93822417,0.00023561,2]
[364329744,1749071445852,-962.0,0.00023564,2]
[364329746,1749071445861,-709.0,0.00023564,2]
[364329748,1749071445872,-2225.0,0.00023564,2]
[364329750,1749071445882,-405.0,0.00023564,2]
[364329752,1749071445891,-151.0,0.000236,7]
[364329755,1749071445904,-151.0,0.000236,7]
[364329757,1749071445913,-151.0,0.000236,7]
[364329759,1749071445923,-151.0,0.000236,9]
[364329761,1749071445933,-638.0,0.000236,2]
[364329763,1749071445943,-621.72,0.00023617,2]
[364329765,1749071445952,-815.84,0.00023617,2]
[364329767,1749071445962,-1143.55,0.00023617,2]
[364329769,1749071445972,-474.24487146,0.00023617,2]
[364329771,1749071445984,-539.67,0.00023617,2]
[364329773,1749071445994,-440.0,0.00023617,2]
[364329775,1749071446003,-327.2617725,0.00023618,2]
[364329777,1749071446012,-745.04,0.00023618,2]
[364329779,1749071446022,-984.47,0.00023619,2]
[364329781,1749071446031,-442.11,0.00023619,2]
[364329784,1749071446041,-577.98,0.00023619,2]
[364329787,1749071446050,-764.66,0.00023619,2]
[364329789,1749071446060,-1093.47,0.00023619,2]
[364329791,1749071446070,-200.0,0.0002362,2]
[364329792,1749071446080,-440.0,0.0002362,2]
[364329793,1749071446089,-436.864525,0.00023621,7]
[364329794,1749071446099,-436.864525,0.00023621,7]
[364329795,1749071446108,-276.6268367,0.00023644,2]
[364329796,1749071446118,-153.0,0.00023644,2]
[364329797,1749071446127,-153.0,0.00023644,2]
[364329798,1749071446136,-153.0,0.00023644,2]
[364329799,1749071446147,-153.0,0.00023644,2]
[364329800,1749071446157,-204.0,0.0002365,8]
[364329801,1749071446166,-937.983197,0.00023654,3]
[364329802,1749071446176,-151.0,0.00023656,7]
[364329803,1749071446186,-151.0,0.00023656,7]
[364329804,1749071446196,-842.5625,0.000237,7]
[364329805,1749071446205,-800.0,0.0002372,2]
[364329806,1749071446215,-159.40047307,0.00023726,2]
[364329807,1749071446225,-5000.0,0.00023776,2]
[364329808,1749071446235,-1491.71526404,0.00023779,2]
[364329809,1749071446244,-352.94100457,0.00023779,2]
[364329810,1749071446254,-2000.0,0.00023779,2]
[364329811,1749071446264,-2400.0,0.00023779,2]
[364329812,1749071446275,-800.0,0.00023782,2]
[364329813,1749071446284,-2000.0,0.0002382,2]
[364329814,1749071446294,-480.129086,0.0002382,2]
[364329815,1749071446304,-823.0,0.00023885,2]
[364329816,1749071446314,-621.72,0.00023891,2]
[364329817,1749071446324,-815.84,0.00023891,2]
[364329818,1749071446333,-1143.55,0.00023891,2]
[364329819,1749071446343,-539.67,0.00023891,2]
[364329820,1749071446354,-440.0,0.00023891,2]
[364329821,1749071446363,-745.04,0.00023892,2]
[364329822,1749071446373,-984.47,0.00023893,2]
[364329823,1749071446383,-442.11,0.00023893,2]
[364329824,1749071446392,-577.98,0.00023893,2]
[364329825,1749071446402,-764.66,0.00023893,2]
[364329826,1749071446411,-1093.47,0.00023893,2]
[364329827,1749071446421,-257.36609889,0.00023894,2]
[364329828,1749071446431,-440.0,0.00023894,2]
[364329829,1749071446440,-596.03,0.00023899,3]
[364329830,1749071446449,-151.0,0.000239,6]
[364329831,1749071446459,-212.90465545,0.000239,3]
[364329832,1749071446469,-998.05442026,0.000239,2]
[364329833,1749071446479,-159.40047307,0.00023918,2]
[364329834,1749071446489,-471.81983633,0.00023984,2]
[364329835,1749071446499,-6804.02571148,0.00023995,2]
[364329836,1749071446508,-203.512286,0.00023995,7]
[364329837,1749071446518,-9567.43702106,0.00024,2]
[364329838,1749071446527,-160.0,0.00024,7]
[364329839,1749071446537,-500.0,0.00024,2]
[364329840,1749071446546,-423.69433488,0.00024,7]
[364329841,1749071446556,-500.0,0.00024,2]
[364329842,1749071446566,-160.0,0.00024,7]
[364329843,1749071446576,-500.0,0.00024,2]
[364329844,1749071446586,-74477.0,0.00024,7]
[364329845,1749071446595,-61458.65,0.00024,2]
[364329846,1749071446604,-151.0,0.00024,7]
[364329847,1749071446613,-191.50532634,0.00024009,2]
[364329848,1749071446623,-2200.0,0.00024033,2]
[364329849,1749071446632,-800.0,0.00024038,2]
[364329850,1749071446641,-516.1556834,0.00024063,2]
[364329851,1749071446651,-206.71,0.00024073,4]
[364329852,1749071446660,-800.0,0.00024074,2]
[364329853,1749071446670,-596.03,0.00024099,7]
[364329854,1749071446680,-2000.0,0.000241,2]
[364329855,1749071446689,-2000.0,0.000241,2]
[364329856,1749071446699,-151.0,0.000241,7]
[364329857,1749071446709,-151.0,0.000241,7]
[364329858,1749071446718,-245.35712,0.000241,7]
[364329859,1749071446728,-151.0,0.000241,7]
[364329860,1749071446738,-1407.63,0.000241,7]
[364329861,1749071446748,-800.0,0.00024104,2]
[364329862,1749071446758,-440.0,0.00024109,2]
[364329863,1749071446768,-440.0,0.00024109,2]
[364329864,1749071446778,-440.0,0.00024109,2]
[364329865,1749071446787,-440.0,0.00024109,2]
[364329866,1749071446797,-440.0,0.00024109,2]
[364329867,1749071446808,-440.0,0.00024109,2]
[364329868,1749071446818,-440.0,0.00024109,2]
[364329869,1749071446828,-493.34859404,0.00024109,2]
[364329870,1749071446838,-159.40047307,0.00024137,2]
[364329871,1749071446847,-800.0,0.0002415,2]
[364329872,1749071446857,-28840.6752441,0.0002416,2]
[364329873,1749071446867,-1956.36844985,0.0002416,3]
[364329874,1749071446877,-91537.06230878,0.0002416,15]
[364329875,1749071446979,-430.37460815,0.00018411,2]
[364329876,1749071446988,-98.89946631,0.00018411,2]
[364329877,1749071447075,-341.10053369,0.00018411,2]
[364329878,1749071447085,-566.64939228,0.00018412,2]
[364329879,1749071447094,-146.79007403,0.00018412,2]
[364329880,1749071447105,-293.20992597,0.00018412,2]
[364329881,1749071447114,-432.06314082,0.00018685,2]
[364330244,1749072521438,3839.122587,0.00024209,120]
[364330318,1749072632408,-5000.0,0.00017198,2]
[364330320,1749072632418,-3885.9548095,0.00017455,2]
[364330322,1749072632428,-300.0,0.00017999,2]
[364330324,1749072632437,-123556.61406946,0.00018,2]
[364330326,1749072632447,-163.83769251,0.0001821,2]
[364330328,1749072632457,-2975.48115979,0.0001831,2]
[364330330,1749072632466,-156.587,0.000184,2]
[364330332,1749072632477,-300.0,0.00018408,2]
[364330334,1749072632486,-430.0,0.00018409,2]
[364330336,1749072632496,-440.0,0.00018409,2]
[364330338,1749072632506,-440.0,0.00018409,2]
[364330340,1749072632515,-440.0,0.00018409,2]
[364330342,1749072632525,-2461.69,0.00018409,2]
[364330344,1749072632534,-2658.08,0.00018409,2]
[364330346,1749072632543,-2885.75,0.00018409,2]
[364330348,1749072632553,-440.0,0.00018409,2]
[364330351,1749072632562,-767.23,0.00018409,2]
[364330354,1749072632571,-440.0,0.00018409,2]
[364330357,1749072632580,-440.0,0.00018409,2]
[364330360,1749072632590,-440.0,0.00018409,2]
[364330363,1749072632599,-440.0,0.00018409,2]
[364330366,1749072632608,-440.0,0.00018409,2]
[364330369,1749072632617,-440.0,0.00018409,2]
[364330372,1749072632627,-440.0,0.00018409,2]
[364330375,1749072632636,-440.0,0.00018409,2]
[364330378,1749072632645,-440.0,0.00018409,2]
[364330381,1749072632654,-1380.54,0.00018409,2]
[364330384,1749072632663,-440.0,0.00018409,2]
[364330386,1749072632672,-440.0,0.00018409,2]
[364330387,1749072632681,-440.0,0.00018409,2]
[364330390,1749072632691,-440.0,0.00018409,2]
[364330391,1749072632700,-521.79838227,0.00018409,2]
[364330393,1749072632710,-440.0,0.00018409,2]
[364330395,1749072632719,-440.0,0.00018409,2]
[364330397,1749072632729,-440.0,0.00018409,2]
[364330398,1749072632738,-440.0,0.00018409,2]
[364330399,1749072632748,-440.0,0.00018409,2]
[364330400,1749072632757,-451.19754418,0.00018409,2]
[364330401,1749072632766,-1401.26,0.00018409,2]
[364330402,1749072632775,-440.0,0.00018409,2]
[364330403,1749072632785,-1601.74,0.00018409,2]
[364330404,1749072632794,-440.0,0.00018409,2]
[364330406,1749072632804,-440.0,0.00018409,2]
[364330408,1749072632813,-440.0,0.00018409,2]
[364330410,1749072632823,-440.0,0.0001841,2]
[364330412,1749072632832,-440.0,0.0001841,2]
[364330414,1749072632841,-440.0,0.0001841,2]
[364330416,1749072632852,-358.25964466,0.0001841,2]
[364330418,1749072632861,-440.0,0.0001841,2]
[364330420,1749072632870,-440.0,0.0001841,2]
[364330422,1749072632880,-440.0,0.0001841,2]
[364330424,1749072632889,-440.0,0.0001841,2]
[364330426,1749072632899,-440.0,0.0001841,2]
[364330428,1749072632909,-430.0,0.0001841,2]
[364330430,1749072632918,-440.0,0.0001841,2]
[364330432,1749072632927,-440.0,0.0001841,2]
[364330434,1749072632937,-440.0,0.0001841,2]
[364330436,1749072632946,-440.0,0.0001841,2]
[364330438,1749072632955,-440.0,0.0001841,2]
[364330440,1749072632964,-430.0,0.0001841,2]
[364330442,1749072632974,-359.40216688,0.0001841,2]
[364330444,1749072632984,-440.0,0.0001841,2]
[364330446,1749072632994,-440.0,0.0001841,2]
[364330448,1749072633004,-440.0,0.0001841,2]
[364330450,1749072633013,-440.0,0.0001841,2]
[364330452,1749072633022,-566.63171816,0.0001841,2]
[364330454,1749072633032,-430.0,0.0001841,2]
[364330456,1749072633042,-536.41,0.0001841,2]
[364330458,1749072633052,-536.41,0.0001841,2]
[364330460,1749072633062,-536.41,0.0001841,2]
[364330462,1749072633073,-430.0,0.0001841,2]
[364330464,1749072633083,-440.0,0.0001841,2]
[364330466,1749072633094,-440.0,0.0001841,2]
[364330468,1749072633104,-440.0,0.0001841,2]
[364330470,1749072633113,-440.0,0.0001841,2]
[364330472,1749072633123,-440.0,0.0001841,2]
[364330474,1749072633133,-440.0,0.0001841,2]
[364330476,1749072633143,-932.88,0.0001841,2]
[364330478,1749072633153,-440.0,0.0001841,2]
[364330480,1749072633162,-440.0,0.0001841,2]
[364330483,1749072633172,-440.0,0.0001841,2]
[364330485,1749072633183,-470.0,0.0001841,2]
[364330487,1749072633192,-574.61,0.0001841,2]
[364330489,1749072633202,-440.0,0.0001841,2]
[364330490,1749072633211,-430.0,0.0001841,2]
[364330493,1749072633222,-1592.15,0.0001841,2]
[364330495,1749072633232,-440.0,0.0001841,2]
[364330497,1749072633241,-550.0,0.0001841,2]
[364330499,1749072633251,-440.0,0.0001841,2]
[364330501,1749072633261,-440.0,0.0001841,2]
[364330503,1749072633271,-440.0,0.0001841,2]
[364330505,1749072633285,-440.0,0.0001841,2]
[364330507,1749072633295,-440.0,0.0001841,2]
[364330509,1749072633305,-440.0,0.0001841,2]
[364330511,1749072633315,-440.0,0.0001841,2]
[364330513,1749072633325,-440.0,0.0001841,2]
[364330515,1749072633335,-500.0,0.0001841,2]
[364330517,1749072633345,-440.0,0.0001841,2]
[364330519,1749072633354,-490.0,0.0001841,2]
[364330521,1749072633365,-440.0,0.0001841,2]
[364330523,1749072633375,-3088.82,0.0001841,2]
[364330525,1749072633385,-440.0,0.0001841,2]
[364330527,1749072633395,-440.0,0.0001841,2]
[364330529,1749072633408,-500.0,0.0001841,2]
[364330543,1749072633537,-440.0,0.0001841,2]
[364330545,1749072633548,-1908.24,0.0001841,2]
[364330547,1749072633557,-440.0,0.0001841,2]
[364330549,1749072633568,-440.0,0.0001841,2]
[364330551,1749072633578,-440.0,0.0001841,2]
[364330553,1749072633587,-440.0,0.0001841,2]
[364330555,1749072633597,-440.0,0.0001841,2]
[364330557,1749072633607,-440.0,0.0001841,2]
[364330559,1749072633616,-440.0,0.0001841,2]
[364330561,1749072633626,-440.0,0.0001841,2]
[364330563,1749072633636,-440.0,0.0001841,2]
[364330565,1749072633646,-440.0,0.0001841,2]
[364330567,1749072633655,-450.0,0.0001841,2]
[364330569,1749072633665,-1479.49,0.0001841,2]
[364330571,1749072633675,-440.0,0.0001841,2]
[364330573,1749072633686,-440.0,0.0001841,2]
[364330575,1749072633696,-440.0,0.0001841,2]
[364330577,1749072633706,-490.0,0.0001841,2]
[364330579,1749072633715,-440.0,0.0001841,2]
[364330581,1749072633724,-440.0,0.0001841,2]
[364330583,1749072633734,-440.0,0.0001841,2]
[364330585,1749072633743,-440.0,0.0001841,2]
[364330587,1749072633752,-470.0,0.0001841,2]
[364330589,1749072633762,-440.0,0.0001841,2]
[364330591,1749072633771,-440.0,0.0001841,2]
[364330593,1749072633781,-440.0,0.0001841,2]
[364330595,1749072633790,-440.0,0.0001841,2]
[364330597,1749072633800,-440.0,0.0001841,2]
[364330599,1749072633810,-440.0,0.0001841,2]
[364330601,1749072633820,-440.0,0.0001841,2]
[364330603,1749072633830,-440.0,0.0001841,2]
[364330605,1749072633840,-440.0,0.0001841,2]
[364330607,1749072633850,-430.0,0.0001841,2]
[364330609,1749072633860,-440.0,0.0001841,2]
[364330611,1749072633870,-470.0,0.0001841,2]
[364330613,1749072633881,-440.0,0.0001841,2]
[364330615,1749072633891,-490.0,0.0001841,2]
[364330618,1749072633902,-769.84,0.0001841,2]
[364330619,1749072633912,-470.0,0.00018411,2]
[364330622,1749072633923,-470.0,0.00018411,2]
[364330624,1749072633933,-430.0,0.00018411,2]
[364330626,1749072633942,-430.0,0.00018411,2]
[364330627,1749072633952,-430.0,0.00018411,2]
[364330629,1749072633962,-440.0,0.00018411,2]
[364330632,1749072633972,-470.0,0.00018411,2]
[364330634,1749072633982,-490.0,0.00018411,2]
[364330636,1749072633992,-430.0,0.00018411,2]
[364330638,1749072634002,-268.05998819,0.00018411,2]
[364330640,1749072634012,-490.0,0.00018411,2]
[364330642,1749072634022,-440.0,0.00018411,2]
[364330644,1749072634032,-300.0,0.00018411,2]
[364330646,1749072634042,-301.59274398,0.00018411,2]
[364330648,1749072634052,-440.0,0.00018411,2]
[364330650,1749072634062,-440.0,0.00018411,2]
[364330652,1749072634073,-290.0,0.00018411,2]
[364330654,1749072634083,-162.04968254,0.00018411,2]
[364330656,1749072634094,-440.0,0.00018411,2]
[364330658,1749072634104,-430.0,0.00018411,2]
[364330660,1749072634114,-547.602809,0.00018411,2]
[364330662,1749072634125,-430.0,0.00018411,2]
[364330664,1749072634136,-440.0,0.00018411,2]
[364330666,1749072634145,-430.0,0.00018411,2]
[364330668,1749072634155,-430.0,0.00018411,2]
[364330670,1749072634164,-440.0,0.00018411,2]
[364330672,1749072634174,-440.0,0.00018411,2]
[364330674,1749072634184,-440.0,0.00018411,2]
[364330676,1749072634194,-440.0,0.00018411,2]
[364330678,1749072634204,-531.08677894,0.00018411,2]
[364330680,1749072634214,-469.27666489,0.00018411,2]
[364330682,1749072634224,-330.0,0.00018411,2]
[364330684,1749072634234,-440.0,0.00018411,2]
[364330686,1749072634243,-430.0,0.00018411,2]
[364330688,1749072634253,-358.53186603,0.00018411,2]
[364330690,1749072634263,-407.68675523,0.00018411,2]
[364330692,1749072634273,-470.0,0.00018411,2]
[364330694,1749072634287,-450.0,0.00018411,2]
[364330696,1749072634297,-440.0,0.00018411,2]
[364330698,1749072634307,-440.0,0.00018411,2]
[364330700,1749072634316,-520.70669063,0.00018411,2]
[364330702,1749072634326,-297.55222512,0.00018411,2]
[364330704,1749072634336,-404.72,0.00018411,2]
[364330706,1749072634345,-387.6527554,0.00018411,2]
[364330708,1749072634355,-440.0,0.00018411,2]
[364330710,1749072634364,-440.0,0.00018411,2]
[364330712,1749072634375,-440.0,0.00018411,2]
[364330714,1749072634385,-440.0,0.00018411,2]
[364330716,1749072634394,-520.0,0.00018411,2]
[364330718,1749072634404,-440.0,0.00018411,2]
[364330720,1749072634414,-440.0,0.00018411,2]
[364330722,1749072634424,-490.0,0.00018411,2]
[364330724,1749072634433,-440.0,0.00018411,2]
[364330726,1749072634443,-260.0,0.00018411,2]
[364330728,1749072634452,-440.0,0.00018411,2]
[364330730,1749072634462,-470.0,0.00018411,2]
[364330732,1749072634471,-440.0,0.00018411,2]
[364330734,1749072634481,-440.0,0.00018411,2]
[364330736,1749072634492,-440.0,0.00018411,2]
[364330738,1749072634502,-430.0,0.00018411,2]
[364330740,1749072634512,-440.0,0.00018411,2]
[364330742,1749072634521,-440.0,0.00018411,2]
[364330744,1749072634531,-178.77994709,0.00018411,2]
[364330746,1749072634541,-440.0,0.00018411,2]
[364330748,1749072634551,-536.41,0.00018411,2]
[364330750,1749072634560,-536.41,0.00018411,2]
[364330752,1749072634570,-440.0,0.00018411,2]
[364330754,1749072634578,-273.11561403,0.00018411,2]
[364330756,1749072634587,-385.8863644,0.00018411,2]
[364330758,1749072634596,-440.0,0.00018411,2]
[364330760,1749072634607,-440.0,0.00018411,2]
[364330762,1749072634616,-440.0,0.00018411,2]
[364330764,1749072634627,-440.0,0.00018411,2]
[364330766,1749072634637,-430.0,0.00018411,2]
[364330768,1749072634647,-564.19115529,0.00018411,2]
[364330770,1749072634658,-440.0,0.00018411,2]
[364330772,1749072634669,-210.0,0.00018411,2]
[364330774,1749072634679,-470.0,0.00018411,2]
[364330776,1749072634689,-440.0,0.00018411,2]
[364330778,1749072634699,-210.0,0.00018411,2]
[364330780,1749072634708,-430.84860009,0.00018411,2]
[364330782,1749072634717,-440.0,0.00018411,2]
[364330784,1749072634726,-440.0,0.00018411,2]
[364330786,1749072634735,-440.0,0.00018411,2]
[364330788,1749072634744,-440.0,0.00018411,2]
[364330790,1749072634754,-440.0,0.00018411,2]
[364330791,1749072634763,-440.0,0.00018411,2]
[364330792,1749072634772,-440.0,0.00018411,2]
[364330793,1749072634781,-440.0,0.00018411,2]
[364330794,1749072634791,-561.94,0.00018411,2]
[364330795,1749072634800,-420.84348022,0.00018411,2]
[364330796,1749072634811,-3312.38,0.00018411,2]
[364330797,1749072634820,-453.96190085,0.00018411,2]
[364330798,1749072634831,-440.0,0.00018411,2]
[364330799,1749072634840,-440.0,0.00018411,2]
[364330800,1749072634850,-440.0,0.00018411,2]
[364330801,1749072634860,-513.5,0.00018411,2]
[364330802,1749072634869,-492.07,0.00018411,2]
[364330803,1749072634879,-262.24683689,0.00018411,2]
[364330804,1749072634888,-428.46454902,0.00018411,2]
[364330805,1749072634898,-440.0,0.00018411,2]
[364330806,1749072634907,-458.56347625,0.00018411,2]
[364330807,1749072634917,-440.0,0.00018411,2]
[364330808,1749072634927,-440.0,0.00018411,2]
[364330809,1749072634936,-540.60008619,0.00018411,2]
[364330810,1749072634946,-440.0,0.00018411,2]
[364330811,1749072634955,-440.0,0.00018411,2]
[364330812,1749072634965,-440.0,0.00018411,2]
[364330813,1749072634975,-440.0,0.00018411,2]
[364330814,1749072634985,-441.17442534,0.00018411,2]